[Event "GrandPrix_29.05"]
[Site "Chess.com"]
[Date "2020.05.29"]
[Round "6"]
[White "larrylarsen"]
[Black "kosmeg"]
[Result "0-1"]
[WhiteElo "1174"]
[BlackElo "2043"]
[TimeControl "600+2"]
[EndTime "12:01:12 PDT"]
[Termination "kosmeg won on time"]

1. d4 {[%clk 0:10:01.9]} 1... Nf6 {[%clk 0:10:00.4]} 2. c4 {[%clk 0:10:00.3]}
2... e6 {[%clk 0:10:01.6]} 3. Nf3 {[%clk 0:09:58.2]} 3... Bb4+ {[%clk
0:10:02.3]} 4. Bd2 {[%clk 0:09:58]} 4... a5 {[%clk 0:10:02.4]} 5. g3 {[%clk
0:09:55.9]} 5... d6 {[%clk 0:10:03]} 6. Bg2 {[%clk 0:09:54.9]} 6... Nbd7 {[%clk
0:10:02.6]} 7. O-O {[%clk 0:09:55]} 7... e5 {[%clk 0:10:04]} 8. Nc3 {[%clk
0:09:16.9]} 8... O-O {[%clk 0:10:02.4]} 9. Qc2 {[%clk 0:09:00.4]} 9... Re8
{[%clk 0:09:59.5]} 10. Rfe1 {[%clk 0:08:42.3]} 10... exd4 {[%clk 0:09:36.7]} 11.
Nxd4 {[%clk 0:08:40.3]} 11... Bc5 {[%clk 0:09:03]} 12. e3 {[%clk 0:07:46.7]}
12... Ne5 {[%clk 0:08:53.8]} 13. h3 {[%clk 0:06:31.5]} 13... Nxc4 {[%clk
0:08:37.6]} 14. Rad1 {[%clk 0:05:02.5]} 14... Nxd2 {[%clk 0:08:25.8]} 15. Rxd2
{[%clk 0:04:56.4]} 15... c6 {[%clk 0:08:18.7]} 16. e4 {[%clk 0:04:30.6]} 16...
Qe7 {[%clk 0:07:42.8]} 17. Red1 {[%clk 0:04:23.1]} 17... Bd7 {[%clk 0:06:30.7]}
18. a3 {[%clk 0:04:17.6]} 18... Rad8 {[%clk 0:06:13.2]} 19. Nb3 {[%clk
0:04:06.7]} 19... Be6 {[%clk 0:05:11.4]} 20. Nxa5 {[%clk 0:03:39.3]} 20... Bc8
{[%clk 0:03:52.8]} 21. b4 {[%clk 0:02:46.3]} 21... Ba7 {[%clk 0:03:33.9]} 22.
Nc4 {[%clk 0:02:35.5]} 22... Bb8 {[%clk 0:03:15.3]} 23. Qd3 {[%clk 0:01:20.2]}
23... Bc7 {[%clk 0:03:04.7]} 24. Qd4 {[%clk 0:01:06.1]} 24... h5 {[%clk
0:02:53.2]} 25. Qa7 {[%clk 0:00:54.1]} 25... Nh7 {[%clk 0:01:40.5]} 26. Na5
{[%clk 0:00:23.5]} 26... h4 {[%clk 0:01:25.9]} 27. g4 {[%clk 0:00:20.5]} 27...
d5 {[%clk 0:01:27.2]} 28. Qe3 {[%clk 0:00:08.7]} 28... Qf6 {[%clk 0:01:19]} 29.
Qf3 {[%clk 0:00:03.3]} 29... Qxf3 {[%clk 0:01:13.4]} 30. Bxf3 {[%clk 0:00:04.1]}
30... Ng5 {[%clk 0:01:12.5]} 31. Bg2 {[%clk 0:00:04.8]} 31... Bf4 {[%clk
0:01:11.9]} 32. Rd4 {[%clk 0:00:04.7]} 32... Ne6 {[%clk 0:01:03.8]} 33. R4d3
{[%clk 0:00:03.9]} 33... dxe4 {[%clk 0:01:00.1]} 0-1

[Event "GrandPrix_29.05"]
[Site "Chess.com"]
[Date "2020.05.29"]
[Round "6"]
[White "VSERGUEI"]
[Black "Gordima"]
[Result "1/2-1/2"]
[WhiteElo "2429"]
[BlackElo "2319"]
[TimeControl "600+2"]
[EndTime "12:01:20 PDT"]
[Termination "Game drawn by repetition"]

1. d4 {[%clk 0:10:01.9]} 1... Nf6 {[%clk 0:10:00.5]} 2. c4 {[%clk 0:10:01.9]}
2... b6 {[%clk 0:10:02.1]} 3. Nc3 {[%clk 0:09:59.1]} 3... Bb7 {[%clk 0:10:03.1]}
4. Qc2 {[%clk 0:09:51.1]} 4... d5 {[%clk 0:10:03.7]} 5. cxd5 {[%clk 0:09:50.7]}
5... Nxd5 {[%clk 0:10:05.6]} 6. Nf3 {[%clk 0:09:48.2]} 6... g6 {[%clk
0:10:00.1]} 7. e4 {[%clk 0:09:45.5]} 7... Nxc3 {[%clk 0:10:01.1]} 8. bxc3 {[%clk
0:09:45.5]} 8... Bg7 {[%clk 0:10:02.2]} 9. Bb5+ {[%clk 0:09:27]} 9... Nd7 {[%clk
0:09:59.4]} 10. O-O {[%clk 0:09:02.5]} 10... O-O {[%clk 0:09:57]} 11. Re1 {[%clk
0:08:29.8]} 11... c5 {[%clk 0:09:47.9]} 12. d5 {[%clk 0:08:20.3]} 12... a6
{[%clk 0:09:44.7]} 13. Bxd7 {[%clk 0:08:00.8]} 13... Qxd7 {[%clk 0:09:46.6]} 14.
Rb1 {[%clk 0:07:41.5]} 14... e6 {[%clk 0:09:46]} 15. c4 {[%clk 0:07:35.4]} 15...
b5 {[%clk 0:09:46]} 16. Bb2 {[%clk 0:07:30.9]} 16... f6 {[%clk 0:09:30.6]} 17.
dxe6 {[%clk 0:07:00.6]} 17... Qxe6 {[%clk 0:09:32.5]} 18. cxb5 {[%clk 0:07:01]}
18... axb5 {[%clk 0:09:30.9]} 19. Qxc5 {[%clk 0:07:00.7]} 19... Qxa2 {[%clk
0:09:00.9]} 20. Qxb5 {[%clk 0:06:07.9]} 20... Bxe4 {[%clk 0:08:58.2]} 21. Ra1
{[%clk 0:05:48.1]} 21... Qd5 {[%clk 0:08:59]} 22. Qxd5+ {[%clk 0:05:46.9]} 22...
Bxd5 {[%clk 0:09:00.3]} 23. Rxa8 {[%clk 0:05:42.1]} 23... Rxa8 {[%clk
0:09:00.3]} 24. Ra1 {[%clk 0:05:38.3]} 24... Rb8 {[%clk 0:08:56.5]} 25. Bd4
{[%clk 0:05:35.1]} 25... g5 {[%clk 0:08:38]} 26. h4 {[%clk 0:05:21.1]} 26... g4
{[%clk 0:08:25]} 27. Nh2 {[%clk 0:05:20.6]} 27... Rb4 {[%clk 0:08:03.4]} 28. Rd1
{[%clk 0:05:01.1]} 28... Be6 {[%clk 0:08:03.5]} 29. Nf1 {[%clk 0:04:55.5]} 29...
Kf7 {[%clk 0:07:54.4]} 30. Ne3 {[%clk 0:04:42.4]} 30... Bf8 {[%clk 0:07:49.8]}
31. g3 {[%clk 0:04:24.2]} 31... f5 {[%clk 0:07:15]} 32. Ng2 {[%clk 0:04:15.5]}
32... Bd5 {[%clk 0:07:00.2]} 33. Bc3 {[%clk 0:04:02.2]} 33... Rb5 {[%clk
0:06:56.8]} 34. Nf4 {[%clk 0:03:53.4]} 34... Bf3 {[%clk 0:06:53.1]} 35. Re1
{[%clk 0:03:34.1]} 35... Be4 {[%clk 0:06:45.4]} 36. Bd4 {[%clk 0:03:30.2]} 36...
Bb4 {[%clk 0:06:15.4]} 37. Ra1 {[%clk 0:03:20.4]} 37... Bd2 {[%clk 0:06:07.6]}
38. Be3 {[%clk 0:03:20.9]} 38... Bxe3 {[%clk 0:05:59]} 39. fxe3 {[%clk
0:03:21.3]} 39... Bb7 {[%clk 0:05:26.1]} 40. Ra2 {[%clk 0:03:08]} 40... Rb1+
{[%clk 0:05:12.1]} 41. Kf2 {[%clk 0:03:06.5]} 41... Kf6 {[%clk 0:05:12.7]} 42.
Ne2 {[%clk 0:02:37]} 42... Rh1 {[%clk 0:05:03.4]} 43. Ra5 {[%clk 0:01:43.1]}
43... Rh2+ {[%clk 0:04:55.5]} 44. Kf1 {[%clk 0:01:35.7]} 44... Rh3 {[%clk
0:01:58.2]} 45. Nf4 {[%clk 0:01:08]} 45... Rh1+ {[%clk 0:01:54.3]} 46. Kf2
{[%clk 0:01:05]} 46... Rh2+ {[%clk 0:01:55.8]} 47. Kf1 {[%clk 0:00:56.7]} 47...
Rb2 {[%clk 0:01:57.7]} 48. Nh5+ {[%clk 0:00:52]} 48... Kg6 {[%clk 0:01:47.9]}
49. Nf4+ {[%clk 0:00:52.8]} 49... Kf6 {[%clk 0:01:49.6]} 50. Nh5+ {[%clk
0:00:53.7]} 50... Ke6 {[%clk 0:01:20.5]} 51. Nf4+ {[%clk 0:00:54.3]} 51... Kf6
{[%clk 0:01:10.4]} 1/2-1/2

[Event "GrandPrix_29.05"]
[Site "Chess.com"]
[Date "2020.05.29"]
[Round "6"]
[White "Alexander_Donchenko"]
[Black "Arm-Akiba"]
[Result "1/2-1/2"]
[WhiteElo "2789"]
[BlackElo "2867"]
[TimeControl "600+2"]
[EndTime "12:01:21 PDT"]
[Termination "Game drawn by repetition"]

1. Nf3 {[%clk 0:10:01.9]} 1... d5 {[%clk 0:09:59.4]} 2. g3 {[%clk 0:10:02.6]}
2... Bg4 {[%clk 0:09:59.7]} 3. Bg2 {[%clk 0:10:03.6]} 3... e6 {[%clk 0:09:59.9]}
4. h3 {[%clk 0:10:03]} 4... Bh5 {[%clk 0:09:59.8]} 5. O-O {[%clk 0:10:03]} 5...
c6 {[%clk 0:09:58.3]} 6. c4 {[%clk 0:09:57.6]} 6... Nf6 {[%clk 0:09:41.7]} 7. d4
{[%clk 0:09:51.7]} 7... Be7 {[%clk 0:09:36.9]} 8. Ne5 {[%clk 0:09:49.3]} 8...
Nbd7 {[%clk 0:09:31.6]} 9. Nc3 {[%clk 0:09:46.4]} 9... O-O {[%clk 0:08:59.8]}
10. g4 {[%clk 0:09:39.9]} 10... Bg6 {[%clk 0:08:59.5]} 11. Nxg6 {[%clk
0:09:41.1]} 11... hxg6 {[%clk 0:08:59.9]} 12. b3 {[%clk 0:09:42.3]} 12... Bb4
{[%clk 0:08:42.4]} 13. Qc2 {[%clk 0:09:29.1]} 13... Bxc3 {[%clk 0:08:33.4]} 14.
Qxc3 {[%clk 0:09:29.1]} 14... Ne4 {[%clk 0:08:34.7]} 15. Qe3 {[%clk 0:09:06.1]}
15... f5 {[%clk 0:07:52]} 16. f3 {[%clk 0:08:19.9]} 16... f4 {[%clk 0:07:50.6]}
17. Qd3 {[%clk 0:08:17.5]} 17... Ng3 {[%clk 0:07:20.6]} 18. Rf2 {[%clk
0:08:02.8]} 18... e5 {[%clk 0:07:20]} 19. cxd5 {[%clk 0:07:45.7]} 19... cxd5
{[%clk 0:07:21.9]} 20. Qb5 {[%clk 0:06:58.2]} 20... exd4 {[%clk 0:06:28.4]} 21.
Qxd5+ {[%clk 0:06:55.2]} 21... Kh7 {[%clk 0:06:26.4]} 22. Qxd4 {[%clk
0:06:29.6]} 22... Nb6 {[%clk 0:05:58.4]} 23. Bb2 {[%clk 0:04:59.5]} 23... Qe7
{[%clk 0:05:58]} 24. Re1 {[%clk 0:04:40.5]} 24... Rad8 {[%clk 0:05:35.6]} 25.
Qe5 {[%clk 0:04:36.1]} 25... Qxe5 {[%clk 0:05:08.1]} 26. Bxe5 {[%clk 0:04:38]}
26... Nd5 {[%clk 0:04:44.4]} 27. e3 {[%clk 0:02:51.5]} 27... Rfe8 {[%clk
0:04:02.5]} 28. e4 {[%clk 0:01:38.8]} 28... Rxe5 {[%clk 0:03:49.8]} 29. Rd1
{[%clk 0:01:39.8]} 29... g5 {[%clk 0:02:20.3]} 30. Rfd2 {[%clk 0:01:34.2]} 30...
Kg6 {[%clk 0:02:05.6]} 31. Kf2 {[%clk 0:01:06.4]} 31... Kf6 {[%clk 0:01:54.5]}
32. exd5 {[%clk 0:01:00.7]} 32... Rd6 {[%clk 0:01:39.1]} 33. Bf1 {[%clk
0:01:00.4]} 33... Nxf1 {[%clk 0:01:40]} 34. Kxf1 {[%clk 0:01:01.7]} 34... b6
{[%clk 0:01:04.6]} 35. Kf2 {[%clk 0:00:59.8]} 35... a5 {[%clk 0:01:01.7]} 36.
Rd3 {[%clk 0:00:55]} 36... Kf7 {[%clk 0:00:59.9]} 37. Rd4 {[%clk 0:00:53.2]}
37... Kg6 {[%clk 0:01:00.8]} 38. R1d3 {[%clk 0:00:50.6]} 38... Kh7 {[%clk
0:00:55.9]} 39. Rd2 {[%clk 0:00:31.8]} 39... Kg6 {[%clk 0:00:54.7]} 40. R2d3
{[%clk 0:00:32.8]} 40... Kh7 {[%clk 0:00:55.5]} 41. Rd2 {[%clk 0:00:34]} 41...
Kg6 {[%clk 0:00:56.2]} 42. R2d3 {[%clk 0:00:35.2]} 1/2-1/2

[Event "GrandPrix_29.05"]
[Site "Chess.com"]
[Date "2020.05.29"]
[Round "6"]
[White "Kiril1965"]
[Black "Igrok3069"]
[Result "0-1"]
[WhiteElo "2587"]
[BlackElo "2685"]
[TimeControl "600+2"]
[EndTime "12:01:29 PDT"]
[Termination "Igrok3069 won by resignation"]

1. c4 {[%clk 0:09:56.4]} 1... c6 {[%clk 0:10:00.2]} 2. Nf3 {[%clk 0:09:54.3]}
2... d5 {[%clk 0:10:01.8]} 3. g3 {[%clk 0:09:48.8]} 3... dxc4 {[%clk 0:09:58.8]}
4. Bg2 {[%clk 0:09:47]} 4... Bf5 {[%clk 0:09:58.9]} 5. Na3 {[%clk 0:09:31.7]}
5... b5 {[%clk 0:09:23.6]} 6. b3 {[%clk 0:09:16.9]} 6... Be4 {[%clk 0:08:54.9]}
7. bxc4 {[%clk 0:09:02]} 7... b4 {[%clk 0:08:55.4]} 8. Nc2 {[%clk 0:08:59.2]}
8... c5 {[%clk 0:08:54.4]} 9. O-O {[%clk 0:08:50.1]} 9... Nf6 {[%clk 0:08:53.3]}
10. d3 {[%clk 0:08:45.3]} 10... Bb7 {[%clk 0:08:47.7]} 11. a3 {[%clk 0:08:23.2]}
11... a5 {[%clk 0:08:22.6]} 12. axb4 {[%clk 0:08:17.1]} 12... axb4 {[%clk
0:08:20.1]} 13. Rxa8 {[%clk 0:08:13.3]} 13... Bxa8 {[%clk 0:08:22]} 14. Be3
{[%clk 0:07:59.6]} 14... e6 {[%clk 0:07:28.9]} 15. d4 {[%clk 0:07:35.9]} 15...
Be4 {[%clk 0:04:49]} 16. Ne5 {[%clk 0:06:38.2]} 16... Bxg2 {[%clk 0:04:49.3]}
17. Kxg2 {[%clk 0:06:38.5]} 17... Bd6 {[%clk 0:04:50.4]} 18. Nd3 {[%clk
0:06:20.7]} 18... cxd4 {[%clk 0:04:07.3]} 19. Nxd4 {[%clk 0:06:04.1]} 19... O-O
{[%clk 0:04:07.3]} 20. Qb3 {[%clk 0:05:50.4]} 20... Qd7 {[%clk 0:02:59.2]} 21.
Nb5 {[%clk 0:05:39.8]} 21... Na6 {[%clk 0:01:39.3]} 22. Ra1 {[%clk 0:04:37.9]}
22... Be7 {[%clk 0:01:39.7]} 23. Kg1 {[%clk 0:04:20.5]} 23... Qb7 {[%clk
0:01:37.5]} 24. Bd2 {[%clk 0:04:14.2]} 24... Ne4 {[%clk 0:01:20.5]} 25. Bxb4
{[%clk 0:03:56.6]} 25... Nxb4 {[%clk 0:00:50.2]} 26. Nxb4 {[%clk 0:03:55.5]}
26... Nd2 {[%clk 0:00:50.8]} 27. Qc3 {[%clk 0:02:44.5]} 27... Bf6 {[%clk
0:00:50.6]} 28. Qxd2 {[%clk 0:02:44.6]} 28... Bxa1 {[%clk 0:00:50.9]} 29. Qd6
{[%clk 0:02:33.6]} 29... Bf6 {[%clk 0:00:48.8]} 30. Qd3 {[%clk 0:02:03.7]} 30...
Ra8 {[%clk 0:00:46.8]} 31. f3 {[%clk 0:02:01.9]} 31... Qb6+ {[%clk 0:00:44.3]}
32. Kg2 {[%clk 0:02:02.8]} 32... h5 {[%clk 0:00:41.5]} 33. Nc2 {[%clk
0:02:02.4]} 33... Rd8 {[%clk 0:00:39.5]} 34. Qe3 {[%clk 0:01:57.9]} 34... Qxe3
{[%clk 0:00:37.5]} 35. Nxe3 {[%clk 0:01:58.8]} 35... Rd2 {[%clk 0:00:34.2]} 36.
Kf2 {[%clk 0:01:58.8]} 36... Be7 {[%clk 0:00:33.2]} 37. Nc3 {[%clk 0:01:50.6]}
37... Rb2 {[%clk 0:00:27.9]} 38. f4 {[%clk 0:01:48.4]} 38... Bc5 {[%clk
0:00:23.7]} 39. Ne4 {[%clk 0:01:48.8]} 39... Bd4 {[%clk 0:00:23.2]} 40. c5
{[%clk 0:01:00.5]} 40... Rb3 {[%clk 0:00:22.8]} 41. c6 {[%clk 0:01:01.4]} 41...
Bxe3+ {[%clk 0:00:23.8]} 42. Kg2 {[%clk 0:00:59.5]} 42... Bb6 {[%clk 0:00:25.7]}
0-1

[Event "GrandPrix_29.05"]
[Site "Chess.com"]
[Date "2020.05.29"]
[Round "6"]
[White "sahidi"]
[Black "etserga"]
[Result "1-0"]
[WhiteElo "2168"]
[BlackElo "2093"]
[TimeControl "600+2"]
[EndTime "12:01:36 PDT"]
[Termination "sahidi won by checkmate"]

1. e4 {[%clk 0:10:01.9]} 1... c6 {[%clk 0:09:54.3]} 2. Nf3 {[%clk 0:10:02]} 2...
d5 {[%clk 0:09:52.9]} 3. Nc3 {[%clk 0:10:02.5]} 3... dxe4 {[%clk 0:09:53.7]} 4.
Nxe4 {[%clk 0:10:03.3]} 4... Nf6 {[%clk 0:09:52.6]} 5. Qe2 {[%clk 0:09:57.8]}
5... Nxe4 {[%clk 0:09:51.1]} 6. Qxe4 {[%clk 0:09:57.7]} 6... Qa5 {[%clk
0:09:51.7]} 7. Bc4 {[%clk 0:09:13.6]} 7... Qf5 {[%clk 0:08:40.9]} 8. d3 {[%clk
0:09:06.4]} 8... Qxe4+ {[%clk 0:08:37.3]} 9. dxe4 {[%clk 0:09:03.9]} 9... g6
{[%clk 0:08:23.7]} 10. c3 {[%clk 0:08:33.6]} 10... Bg7 {[%clk 0:08:19.6]} 11.
Bf4 {[%clk 0:08:20.7]} 11... Nd7 {[%clk 0:08:12.8]} 12. h3 {[%clk 0:08:02.5]}
12... Nc5 {[%clk 0:07:55.4]} 13. Nd2 {[%clk 0:07:52.4]} 13... b5 {[%clk
0:07:34.9]} 14. Be2 {[%clk 0:07:50.3]} 14... Bb7 {[%clk 0:07:29.2]} 15. Be3
{[%clk 0:07:21.5]} 15... Na4 {[%clk 0:06:47.8]} 16. Rb1 {[%clk 0:07:04.5]} 16...
Bc8 {[%clk 0:06:34.2]} 17. Nb3 {[%clk 0:06:57.3]} 17... Be6 {[%clk 0:06:31.8]}
18. O-O {[%clk 0:06:56.7]} 18... O-O {[%clk 0:06:21.6]} 19. Rfd1 {[%clk
0:06:40.1]} 19... f5 {[%clk 0:06:04.6]} 20. exf5 {[%clk 0:06:24.6]} 20... gxf5
{[%clk 0:05:51.8]} 21. Bf3 {[%clk 0:06:19.7]} 21... f4 {[%clk 0:05:22.8]} 22.
Bd4 {[%clk 0:06:02.8]} 22... Bf5 {[%clk 0:05:19.6]} 23. Bxc6 {[%clk 0:06:03.2]}
23... e5 {[%clk 0:05:08]} 24. Bxa8 {[%clk 0:05:20.1]} 24... Rxa8 {[%clk
0:04:14]} 25. Bc5 {[%clk 0:05:16]} 25... Bc2 {[%clk 0:04:08.1]} 26. Rdc1 {[%clk
0:05:08.3]} 26... Bxb3 {[%clk 0:04:05.6]} 27. axb3 {[%clk 0:05:04.5]} 27... Nxc5
{[%clk 0:04:05.7]} 28. b4 {[%clk 0:05:06]} 28... Nb3 {[%clk 0:03:45.5]} 29. Rd1
{[%clk 0:05:05.5]} 29... e4 {[%clk 0:03:38.5]} 30. Rd7 {[%clk 0:05:01]} 30... a5
{[%clk 0:03:31.6]} 31. bxa5 {[%clk 0:05:00.4]} 31... Nxa5 {[%clk 0:03:28.6]} 32.
Ra1 {[%clk 0:04:50.3]} 32... e3 {[%clk 0:03:20.2]} 33. fxe3 {[%clk 0:04:29.7]}
33... fxe3 {[%clk 0:03:19]} 34. Re7 {[%clk 0:04:28.9]} 34... Bf8 {[%clk
0:02:53.6]} 35. Re4 {[%clk 0:04:23.4]} 35... Rd8 {[%clk 0:01:48.9]} 36. Rxa5
{[%clk 0:04:06]} 36... Rd1+ {[%clk 0:01:47.5]} 37. Kh2 {[%clk 0:04:07]} 37...
Bd6+ {[%clk 0:01:48.3]} 38. g3 {[%clk 0:04:00.5]} 38... Rd2+ {[%clk 0:01:44.7]}
39. Kh1 {[%clk 0:03:23.4]} 39... e2 {[%clk 0:00:50.7]} 40. Ra8+ {[%clk
0:03:22.2]} 40... Kf7 {[%clk 0:00:47.5]} 41. Rae8 {[%clk 0:03:18.2]} 41... Rxb2
{[%clk 0:00:35.1]} 42. Rxe2 {[%clk 0:03:16.9]} 42... Rb3 {[%clk 0:00:35.9]} 43.
R8e3 {[%clk 0:03:15.5]} 43... Bc5 {[%clk 0:00:36.1]} 44. Rf3+ {[%clk 0:03:10.5]}
44... Kg7 {[%clk 0:00:37.1]} 45. Kg2 {[%clk 0:03:08.7]} 45... Rb1 {[%clk
0:00:32.1]} 46. h4 {[%clk 0:02:54.7]} 46... Kg6 {[%clk 0:00:28.3]} 47. Re6+
{[%clk 0:02:53.4]} 47... Kg7 {[%clk 0:00:29.3]} 48. Rf5 {[%clk 0:02:52]} 48...
Rb2+ {[%clk 0:00:26]} 49. Kh3 {[%clk 0:02:48.8]} 49... Bg1 {[%clk 0:00:25.9]}
50. Rd5 {[%clk 0:02:47.4]} 50... Kf7 {[%clk 0:00:20.9]} 51. Rh6 {[%clk
0:02:44.7]} 51... Kg7 {[%clk 0:00:21.7]} 52. Rc6 {[%clk 0:02:44.5]} 52... Kf7
{[%clk 0:00:21.3]} 53. Rd7+ {[%clk 0:02:43.6]} 53... Ke8 {[%clk 0:00:22.5]} 54.
Rxh7 {[%clk 0:02:33.5]} 54... Kd8 {[%clk 0:00:18.5]} 55. Rg6 {[%clk 0:02:15.8]}
55... Rh2+ {[%clk 0:00:15.1]} 56. Kg4 {[%clk 0:02:15.9]} 56... b4 {[%clk
0:00:12.5]} 57. Rg8# {[%clk 0:02:15.9]} 1-0

[Event "GrandPrix_29.05"]
[Site "Chess.com"]
[Date "2020.05.29"]
[Round "6"]
[White "Sanan_Sjugirov"]
[Black "AlexVanGog"]
[Result "0-1"]
[WhiteElo "2713"]
[BlackElo "2581"]
[TimeControl "600+2"]
[EndTime "12:01:38 PDT"]
[Termination "AlexVanGog won by resignation"]

1. Nf3 {[%clk 0:10:00]} 1... d5 {[%clk 0:09:59.3]} 2. d4 {[%clk 0:09:45.9]} 2...
Nf6 {[%clk 0:09:59.6]} 3. Bf4 {[%clk 0:09:43.8]} 3... e6 {[%clk 0:09:58.7]} 4.
e3 {[%clk 0:09:44]} 4... c5 {[%clk 0:09:59.7]} 5. Nbd2 {[%clk 0:09:40.5]} 5...
Nc6 {[%clk 0:10:00.6]} 6. c3 {[%clk 0:09:40.9]} 6... Be7 {[%clk 0:09:59.4]} 7.
Bd3 {[%clk 0:09:20.3]} 7... Nh5 {[%clk 0:09:57.6]} 8. Be5 {[%clk 0:08:59.7]}
8... f6 {[%clk 0:09:57.7]} 9. Bg3 {[%clk 0:09:00.3]} 9... g6 {[%clk 0:09:58.1]}
10. Qe2 {[%clk 0:08:01.4]} 10... O-O {[%clk 0:09:56.4]} 11. dxc5 {[%clk
0:07:43]} 11... Bxc5 {[%clk 0:09:37.8]} 12. e4 {[%clk 0:07:43.7]} 12... d4
{[%clk 0:08:55.7]} 13. e5 {[%clk 0:05:37]} 13... dxc3 {[%clk 0:08:43.6]} 14.
bxc3 {[%clk 0:05:37.5]} 14... f5 {[%clk 0:08:43.9]} 15. Nc4 {[%clk 0:05:18.7]}
15... Qe7 {[%clk 0:07:21.8]} 16. Bh4 {[%clk 0:04:54.9]} 16... Qg7 {[%clk
0:06:57]} 17. Bg5 {[%clk 0:04:54.6]} 17... b5 {[%clk 0:06:36.9]} 18. Ncd2 {[%clk
0:04:09.1]} 18... h6 {[%clk 0:06:08.2]} 19. Be3 {[%clk 0:04:09.4]} 19... Nxe5
{[%clk 0:04:37.8]} 20. Nxe5 {[%clk 0:03:20.5]} 20... Qxe5 {[%clk 0:04:36.8]} 21.
Bxh6 {[%clk 0:03:18.3]} 21... Nf4 {[%clk 0:04:01.1]} 22. Bxf4 {[%clk 0:03:07.6]}
22... Qxf4 {[%clk 0:04:01.9]} 23. Bxb5 {[%clk 0:02:53.4]} 23... Bb7 {[%clk
0:03:59.2]} 24. O-O {[%clk 0:02:33.7]} 24... Kg7 {[%clk 0:02:38.4]} 25. Rfe1
{[%clk 0:01:38.3]} 25... Rh8 {[%clk 0:02:30.2]} 26. Nf1 {[%clk 0:01:37.4]} 26...
Be4 {[%clk 0:01:38.4]} 27. Rad1 {[%clk 0:01:33.4]} 27... Rxh2 {[%clk 0:00:37]}
28. Nxh2 {[%clk 0:00:18.2]} 28... Rh8 {[%clk 0:00:36.8]} 29. Rd7+ {[%clk
0:00:14.9]} 29... Kf6 {[%clk 0:00:36]} 30. Nf3 {[%clk 0:00:08.6]} 30... Qh6
{[%clk 0:00:24.8]} 0-1

[Event "GrandPrix_29.05"]
[Site "Chess.com"]
[Date "2020.05.29"]
[Round "6"]
[White "Kezin_Roman"]
[Black "Chessialist"]
[Result "1-0"]
[WhiteElo "2706"]
[BlackElo "2512"]
[TimeControl "600+2"]
[EndTime "12:01:40 PDT"]
[Termination "Kezin_Roman won by resignation"]

1. d4 {[%clk 0:10:01.9]} 1... Nf6 {[%clk 0:10:00.2]} 2. c4 {[%clk 0:09:55.5]}
2... e6 {[%clk 0:10:00.3]} 3. g3 {[%clk 0:09:56.2]} 3... d5 {[%clk 0:09:55.9]}
4. Bg2 {[%clk 0:09:56.8]} 4... Be7 {[%clk 0:09:56.6]} 5. Nf3 {[%clk 0:09:57.5]}
5... O-O {[%clk 0:09:56.5]} 6. O-O {[%clk 0:09:57.6]} 6... dxc4 {[%clk 0:09:58]}
7. Qc2 {[%clk 0:09:58.6]} 7... a6 {[%clk 0:09:59.5]} 8. a4 {[%clk 0:09:58.6]}
8... b6 {[%clk 0:09:59.4]} 9. Bg5 {[%clk 0:06:54.7]} 9... Bb7 {[%clk 0:09:56.5]}
10. Bxf6 {[%clk 0:06:55.7]} 10... Bxf6 {[%clk 0:09:55.9]} 11. Qxc4 {[%clk
0:06:56.9]} 11... Nc6 {[%clk 0:09:28.3]} 12. e3 {[%clk 0:06:50.5]} 12... Rc8
{[%clk 0:08:49.6]} 13. b4 {[%clk 0:04:58.6]} 13... Ne7 {[%clk 0:08:25.5]} 14. b5
{[%clk 0:04:54.2]} 14... Qd5 {[%clk 0:06:49.8]} 15. Qe2 {[%clk 0:04:30.9]} 15...
Qh5 {[%clk 0:06:00.4]} 16. bxa6 {[%clk 0:04:23.3]} 16... Ba8 {[%clk 0:05:56.4]}
17. Nbd2 {[%clk 0:04:03.6]} 17... c5 {[%clk 0:05:42]} 18. Rac1 {[%clk
0:03:56.8]} 18... cxd4 {[%clk 0:05:42.3]} 19. exd4 {[%clk 0:03:23.3]} 19... Nd5
{[%clk 0:02:49.4]} 20. a5 {[%clk 0:02:06.3]} 20... bxa5 {[%clk 0:02:42.2]} 21.
Qb5 {[%clk 0:02:07.2]} 21... Qh6 {[%clk 0:02:39.8]} 22. Rxc8 {[%clk 0:01:33]}
22... Rxc8 {[%clk 0:02:40]} 23. a7 {[%clk 0:01:34.5]} 23... Ne7 {[%clk
0:01:48.1]} 24. Nc4 {[%clk 0:00:54.3]} 24... Rf8 {[%clk 0:00:31.2]} 25. Nb6
{[%clk 0:00:53.6]} 25... Bc6 {[%clk 0:00:31.8]} 26. Qxa5 {[%clk 0:00:53.7]}
26... Nf5 {[%clk 0:00:24.6]} 27. Ne5 {[%clk 0:00:39.6]} 27... Bxg2 {[%clk
0:00:21.5]} 28. Kxg2 {[%clk 0:00:41.5]} 28... Bxe5 {[%clk 0:00:04.8]} 29. a8=Q
{[%clk 0:00:39.7]} 29... Nxd4 {[%clk 0:00:03.6]} 30. Nd7 {[%clk 0:00:21.9]}
30... Bd6 {[%clk 0:00:02.7]} 31. Nxf8 {[%clk 0:00:20.1]} 1-0